Cogmind - Beta 14 @@@ ROGUE MODE // 2025.05.02 @ 22:20:29 Player: BatSpy Result: Destroyed by Y-45 Defender with Heavy Assault Rifle Performance ------------- Evolutions (1) 500 Regions Visited (3) 600 Robots Destroyed (23) 115 Value Destroyed (461) 461 Prototype IDs (2) 40 Alien Tech Used (0) 0 Bonus (125) 125 TOTAL SCORE: 1841 Bonus ------- Follower Combat Kills 147 Friendly Fire -22 Cogmind --------- Core Integrity 0/400 Matter 225/300 Energy 60/125 System Corruption 0% Temperature Cool (33) Movement Rolling (85) Location -9/Materials Parts ------- > --- POWER (1) -------- Light Ion Engine > --- PROPULSION (3) --- Wheel Armored Wheel Flight Unit > --- UTILITY (3) ------ Small Storage Unit ECM Suite > --- WEAPON (2) ------- Field Laser Flail > --- INVENTORY (8) ---- Flight Unit Field Laser Field Laser Shock Bomb Launcher Welding Torch Peak State ------------ > --- POWER ------------ Ion Engine > --- PROPULSION ------- Carbon-fiber Leg Carbon-fiber Leg Carbon-fiber Leg > --- UTILITY ---------- Small Storage Unit Targeting Computer ECM Suite > --- WEAPON ----------- Field Laser Field Laser > --- INVENTORY -------- Ion Engine Light Ion Engine Carbon-fiber Leg Field Laser Shock Bomb Launcher Welding Torch [Rating: 20] Favorites ----------- Power Ion Engine Engine Ion Engine Propulsion Carbon-fiber Leg Treads Light Treads Leg Carbon-fiber Leg Wheel Armored Wheel Hover Unit Hover Unit Flight Unit Flight Unit Utility Small Storage Unit Device ECM Suite Storage Small Storage Unit Processor Targeting Computer Protection Core Shielding Weapon Hammer Energy Gun Field Laser Ballistic Gun Light Assault Rifle Launcher EMP Blaster Special Weapon Welding Torch Impact Weapon Hammer Build | -11 -10 -10 -9 ------- Run | Yrd Mat Min Mat Slots Evolved 2 | . . . 2 Power . | . . . . Propulsion 1 | . . . 1 Utility 1 | . . . 1 Weapon . | . . . . Parts Attached 45 | 6 8 . 31 Power 8 | 1 1 . 6 Engine 8 | 1 1 . 6 Core . | . . . . Reactor . | . . . . Propulsion 18 | 2 4 . 12 Treads 4 | 2 1 . 1 Leg 8 | . 1 . 7 Wheel 2 | . . . 2 Hover 2 | . 2 . . Flight 2 | . . . 2 Utility 6 | 1 1 . 4 Device 2 | . . . 2 Storage 1 | 1 . . . Processor 1 | . 1 . . Hackware . | . . . . Protection 2 | . . . 2 Artifact . | . . . . Weapon 13 | 2 2 . 9 Energy Gun 6 | 1 1 . 4 Energy Cannon . | . . . . Ballistic Gun 1 | 1 . . . Ballistic Cannon . | . . . . Launcher 2 | . . . 2 Special Weapon 1 | . 1 . . Impact Weapon 3 | . . . 3 Slashing Weapon . | . . . . Piercing Weapon . | . . . . Special Melee Weapon . | . . . . Unidentified Prototypes . | . . . . Parts Lost 16 | . . 2 14 Power 5 | . . . 5 Propulsion 5 | . . . 5 Utility 2 | . . . 2 Weapon 4 | . . 2 2 Highest Loss Streak 6 | . . 2 6 To Critical Strikes . | . . . . Average Slot Usage (%) 86 | . 73 82 90 Engine 10 | . 13 14 9 Treads 3 | . 7 . 2 Leg 15 | . 3 . 20 Wheel 3 | . . . 4 Hover 4 | . 7 28 1 Device 6 | . . . 9 Storage 11 | . 14 14 11 Processor 3 | . 2 14 2 Protection 5 | . . . 8 Energy Gun 4 | . 7 5 3 Ballistic Gun 3 | . 14 6 . Launcher 2 | . . . 3 Impact Weapon 9 | . . . 12 Peak Build Rating 20 | 6 7 7 20 Average Rating 11 | 3 5 5 13 On Entrance 4 | . 6 7 5 Naked Turns . | . . . . Heaviest Build 19 | 13 13 12 19 Greatest Support 45 | 40 40 12 45 Greatest Overweight (x) 3 | 1 3 . 1 Average Overweight (x) . | . . . . Largest Inventory Capacity 8 | 8 8 8 8 Average Capacity 7 | 6 8 8 8 Most Carried 8 | 5 4 5 8 Average Carried 5 | 1 1 4 6 Final Capacity 8 | 8 8 8 8 Final Carried 5 | . 3 5 5 Class Distribution -------------------- 100% | Mutant Dominant Class ---------------- Mutant | -10/Materials Mutant | -10/Mines Mutant | -9/Materials Resources | -11 -10 -10 -9 ----------- Run | Yrd Mat Min Mat Matter Collected 546 | 257 . 63 226 Remotely . | . . . . Salvage Created 629 | . . 29 600 Parts 41 | . . 4 37 Haulers Intercepted . | . . . . Recyclers Shooed . | . . . . Parts Field Recycled . | . . . . Retrieved Matter . | . . . . Parts Self-Destructed . | . . . . Prevented . | . . . . Kills | -11 -10 -10 -9 ------- Run | Yrd Mat Min Mat Combat Hostiles Destroyed 16 | . . . 16 Melee 6 | . . . 6 Guns 3 | . . . 3 AOE 3 | . . . 3 Classes Destroyed 6 | . . 1 5 Worker 4 | . . 1 3 Watcher 3 | . . . 3 Swarmer 8 | . . . 8 Grunt 3 | . . . 3 Duelist 1 | . . . 1 Sentry 4 | . . . 4 Best Kill Streak 5 | . . 1 5 Combat Bots Only 3 | . . . 3 Max Kills in Single Turn 3 | . . 1 3 Gunslinging . | . . . . Exploded 3 | . . . 3 Melee 1 | . . . 1 Uniques/NPCs Destroyed . | . . . . Combat | -11 -10 -10 -9 -------- Run | Yrd Mat Min Mat Hostile Shots Fired 238 | . 1 18 219 Missed 78 | . 1 6 71 Damage Taken 2119 | . . 336 1783 Core 499 | . . 96 403 Absorbed by Shields . | . . . . Redirected to Shielding 35 | . . . 35 Core Remaining (%) 80 | 100 . 61 . Volleys Fired 19 | . 7 1 11 Largest 2 | . 2 2 2 Hottest 126 | . 60 60 126 Shots Fired 28 | . 14 2 12 Gun 25 | . 14 2 9 Cannon . | . . . . Launcher 3 | . . . 3 Special . | . . . . Kinetic 8 | . 7 1 . Thermal 12 | . 2 1 9 Explosive 2 | . . . 2 Electromagnetic 6 | . 5 . 1 Robot Hit Streak 5 | . 2 3 5 Robot Miss Streak 2 | . 2 . 2 Penetration Max . | . . . . Secondary Targets . | . . . . Shots Hit Robots 60 | . 7 1 52 Core Hits 18 | . 1 2 15 Critical Kills 1 | . . . 1 Critical Parts Destroyed 6 | . . . 6 Critical Strikes 7 | . . . 7 Smash 7 | . . . 7 Melee Attacks 60 | . . . 60 Impact 60 | . . . 60 Slashing . | . . . . Piercing . | . . . . Sneak Attacks 2 | . . . 2 Combat Hostiles . | . . . . Follow-up Attacks 3 | . . . 3 Damage Inflicted 1617 | . 92 33 1492 Guns 225 | . 92 12 121 Cannons . | . . . . Explosions 199 | . . . 199 Melee 1172 | . . . 1172 Ramming 21 | . . 21 . Kinetic 23 | . 23 . . Thermal 177 | . 21 12 144 Explosive 150 | . . . 150 Electromagnetic 74 | . 48 . 26 Impact 1172 | . . . 1172 Slashing . | . . . . Piercing . | . . . . Highest Corruption . | . . . . Average Corruption . | . . . . Corruption Purged . | . . . . Corruption Blocked . | . . . . Overload Shots . | . . . . Overflow Damage 257 | . . . 257 Projectiles . | . . . . Explosions . | . . . . Melee 257 | . . . 257 Knockbacks 3 | . . . 3 Impact 3 | . . . 3 Kinetic . | . . . . Secondary . | . . . . Self-Inflicted Damage 40 | . . 10 30 Shots 1 | . . . 1 Rammed 4 | . . 4 . Targets Rammed 4 | . . 4 . Kicked . | . . . . Crushed . | . . . . Highest Temperature 57 | . 40 24 57 Average Temperature 17 | . 21 9 17 Received Heat Transfer 476 | . . 80 396 Siege Activations . | . . . . Robots Corrupted 6 | . . . 6 Combat Hostiles 4 | . . . 4 Parts Fried 9 | . . . 9 Impact Corruptions 14 | . . . 14 Robots Melted . | . . . . Combat Hostiles . | . . . . Parts Melted . | . . . . Heat Transferred 384 | . 50 25 309 Parts Sabotaged . | . . . . Parts Stolen . | . . . . Parts Stripped . | . . . . Power Chain Reactions 1 | . . . 1 Alert | -11 -10 -10 -9 ------- Run | Yrd Mat Min Mat Peak Influence 318 | . 46 62 318 Initial 24 | . . 17 24 Average 109 | . 11 39 145 Maximum Alert Level 1 | . . . 1 Low Security (%) 73 | 100 100 100 63 Level 1 26 | . . . 36 Level 2 . | . . . . Level 3 . | . . . . Level 4 . | . . . . Level 5 . | . . . . High Security . | . . . . Max Security . | . . . . Squads Dispatched 4 | . 1 . 3 Investigation 1 | . . . 1 Extermination . | . . . . Reinforcement 3 | . 1 . 2 Assault . | . . . . Garrison . | . . . . Intercept . | . . . . Searches Triggered . | . . . . Construction Impeded . | . . . . Haulers Reinforced . | . . . . Active Scanning Responses . | . . . . Cargo Convoy Interrupts . | . . . . Stealth | -11 -10 -10 -9 --------- Run | Yrd Mat Min Mat Distress Signals 4 | . 1 . 3 Communications Jammed . | . . . . Distress Signals . | . . . . Times Spotted 54 | . 6 21 27 Peak Tracking Total 15 | . 4 15 6 Tactical Retreats 3 | . . 1 2 Traps | -11 -10 -10 -9 ------- Run | Yrd Mat Min Mat Traps Triggered 3 | . 2 . 1 Indirectly . | . . . . Trap Hack Attempts . | . . . . Triggered . | . . . . Disarmed . | . . . . Reprogrammed . | . . . . Reused . | . . . . Traps Extracted . | . . . . Installed . | . . . . Triggered . | . . . . Machines | -11 -10 -10 -9 ---------- Run | Yrd Mat Min Mat Machines Disabled . | . . . . Max in Single Turn . | . . . . Machines Repaired . | . . . . Machines Dismantled . | . . . . Machines Sabotaged . | . . . . Overloaded Fab Kills . | . . . . Hacking | -11 -10 -10 -9 --------- Run | Yrd Mat Min Mat Machines Accessed 11 | . 2 . 9 Terminals 9 | . 2 . 7 Fabricators . | . . . . Repair Stations . | . . . . Recycling Units 1 | . . . 1 Scanalyzers 1 | . . . 1 Garrison Access . | . . . . Total Hacks 30 | . 4 . 26 Successful 13 | . 3 . 10 Failed 17 | . 1 . 16 Catastrophic 4 | . . . 4 Database Lockouts . | . . . . Manual 15 | . . . 15 Terminals 26 | . 4 . 22 Fabricators . | . . . . Repair Stations . | . . . . Recycling Units 2 | . . . 2 Scanalyzers 2 | . . . 2 Garrison Access . | . . . . Terminal Hacks 10 | . 3 . 7 Prototype ID Bank 1 | . 1 . . Alert Level 3 | . . . 3 Unreport Threat 2 | . . . 2 Locate Traps 1 | . 1 . . Recall Investigation 1 | . 1 . . Zone Layout 2 | . . . 2 Fabricator Hacks . | . . . . Repair Station Hacks . | . . . . Recycling Unit Hacks 2 | . . . 2 Report Inventory 1 | . . . 1 Retrieve Components 1 | . . . 1 Scanalyzer 1 | . . . 1 Insert Component 1 | . . . 1 Garrison Access Hacks . | . . . . Unauthorized Hacks . | . . . . Terminals . | . . . . Fabricators . | . . . . Repair Stations . | . . . . Recycling Units . | . . . . Scanalyzers . | . . . . Garrison Access . | . . . . Data Cores Recovered . | . . . . Used . | . . . . Hacking Detections 10 | . 2 . 8 Full Trace Events . | . . . . Feedback Events . | . . . . Feedback Blocked . | . . . . Robot Schematics Acquired . | . . . . Robots Built . | . . . . Authchips . | . . . . Time . | . . . . Total Robot Build Rating . | . . . . Part Schematics Acquired . | . . . . Parts Built . | . . . . Authchips . | . . . . Time . | . . . . Total Part Build Rating . | . . . . Parts Repaired . | . . . . Time . | . . . . Parts Recycled . | . . . . Recycled Matter . | . . . . Retrieved Matter . | . . . . Retrieved Components 9 | . . . 9 Parts Scanalyzed . | . . . . Part Schematics Acquired . | . . . . Parts Damaged . | . . . . Bothacking | -11 -10 -10 -9 ------------ Run | Yrd Mat Min Mat Used RIF Installer . | . . . . Robots Hacked . | . . . . Non-combat . | . . . . Combat . | . . . . Robot Hacks Applied . | . . . . Relay Couplers Released . | . . . . Fabnet Peak Effective % . | . . . . Robots Rewired . | . . . . Allies Hacked . | . . . . Hacks Repelled . | . . . . Allies | -11 -10 -10 -9 -------- Run | Yrd Mat Min Mat Total Allies 3 | . . 3 . Largest Group 3 | . . . 3 Highest-Rated Group 40 | . . . 40 Highest-Rated Ally 16 | . . . 16 Total Orders . | . . . . Ally Attacks 26 | . . . 26 Total Damage 266 | . . . 266 Kills 7 | . . . 7 Allies Corrupted . | . . . . Allies Melted . | . . . . Intel | -11 -10 -10 -9 ------- Run | Yrd Mat Min Mat Robot Analysis Total . | . . . . Derelict Logs Recovered 1 | . . 1 . Drone Launches . | . . . . Drone Recoveries . | . . . . Exploration | -11 -10 -10 -9 ------------- Run | Yrd Mat Min Mat Turns Passed 1323 | 46 225 109 943 Spaces Moved 969 | 33 166 175 595 Core 39 | 17 22 . . Treads 48 | 16 32 . . Legs 347 | . 24 . 323 Wheels 231 | . . . 231 Hover 304 | . 88 175 41 Flight . | . . . . Fastest Speed 50 | 50 56 56 66 Average Speed 101 | 106 113 56 110 Slowest Speed 200 | 160 200 56 126 Overloaded Moves . | . . . . Propulsion Burnouts . | . . . . Robots Hopped . | . . . . Cave-ins Triggered . | . . . . Exploration Rate (%) 38 | 4 35 63 52 Regions Visited 3 Branch Regions 1 Pre-discovered Areas . | . . . . Known Exits Taken . | . . . . Unknown Exits Taken 3 | 1 1 1 . Scrap Searched 1 | . . 1 . Spaces Dug . | . . . . Terrain Destroyed 21 | . . . 21 Melee . | . . . . Projectile . | . . . . AOE 21 | . . . 21 Terrain Rammed . | . . . . Walls Destroyed . | . . . . Machines Disabled . | . . . . Actions | -11 -10 -10 -9 --------- Run | Yrd Mat Min Mat Total 1180 | 43 189 183 765 Wait 44 | . . 2 42 Move 966 | 32 165 174 595 Hop . | . . . . Pick Up 40 | 5 9 2 24 Fast Attach 3 | 1 . . 2 Attach 29 | 5 6 . 18 Detach . | . . . . Swap 13 | . 2 . 11 Drop 5 | . . . 5 Fire 19 | . 7 1 11 Melee 57 | . . . 57 Ram 4 | . . 4 . Kick . | . . . . Crush . | . . . . Escape Stasis . | . . . . Rewire . | . . . . Trap . | . . . . Miscellaneous . | . . . . Route ------- -11/Scrapyard -10/Materials -10/Mines -9/Materials (discovered 2 exits: [*Mat] / [*Min]) History --------- Turn | Location | Event 15 | -11/Scrapyard | Discovered new exit (range 16) 47 | -11/Scrapyard | Entered Materials 260 | -10/Materials | Discovered new exit (range 8) 272 | -10/Materials | Entered Mines 273 | -10/Mines | Assembled infested the area 278 | -10/Mines | Assisted by a Guerilla fighting off Assembled 286 | -10/Mines | Met a Derelict bent on vengeance 308 | -10/Mines | Build established: Mutant 339 | -10/Mines | Learned Materials terminal intel 375 | -10/Mines | Discovered new exit (range 6) 380 | -10/Mines | Assisted by bots powering up and referring to "LRC-V3" 381 | -10/Mines | Entered Materials 381 | -9/Materials | Accompanied by 3 allies 381 | -9/Materials | Evolved 2 slots: Propulsion x1, Utility x1 382 | -9/Materials | Loaded intel: 12 terminal locations 653 | -9/Materials | Discovered new exit (range 3) 767 | -9/Materials | Lost 3 parts (1p2n) 1135 | -9/Materials | Discovered new exit (range 12) 1191 | -9/Materials | Core integrity fell below 50% 1226 | -9/Materials | Lost 6 parts (2p2n1u1w) 1262 | -9/Materials | Core integrity fell below 20% 1303 | -9/Materials | Lost 3 parts (1p1u1w) 1324 | -9/Materials | Destroyed by Y-45 Defender with Heavy Assault Rifle Last Messages --------------- Corrupted Lgt. Treads (80%) Corrupted Imp. Ion Engine (88%) Corrupted Lgt. Assault Rifle (75%) Lgt. Ion Engine (97%) Lgt. Assault Rifle (92%) Flight Unit (95%) Corrupted Flight Unit (90%) Wheel (87%) >>Retrieve(Components) Retrieving 9 components... Corrupted Imp. Ion Engine Corrupted Lgt. Assault Rifle Wheel Corrupted Flight Unit Corrupted Lgt. Treads Flight Unit Flight Unit Lgt. Assault Rifle Lgt. Ion Engine 01316_ Acquired Wheel. Map ----- +----------------------------------------------------+ | "" #??????????????????????????????????????????? | | "" #??????????????????????????????????????????? | | #??????????????????????????????????????????? | | "" #??????????????????????????????????????????? | | "" #??????????????????????????????????????????? | | "" #??????????????????????????? ????????????? | | #??????????????????????????# #???????????? | | #######??????????????????????????# #???????????? | | #???????????????????????????# #???????????? | | #???????????????????????????# #???????????? | | #???????????????????????????# #???????????? | | #???????????????????????????# #???????????? | | #???????????????????????????# #???????????? | | #????????????????????######## #???????????? | | #????????????????????# #???????????? | | #???????????????????## #???????????? | | #???????????????????? #???????????? | | ######??????????????????????# #########+### | | ??###???????????????????????# | | ### ####????????????????????# | | #???????????????#????# | | """ #?????????????? #######+###### | | "T" #?????????????? # Y% # """ """ | | "" #????????????? # = # """ """ | | "" #????????????? # [=* """ # """ """ | | "" #######?????? ?#=@=*[ """ # | | ## ######+###o"Y" """ # | | ## + """ # """ """ | | ######### ^ ########## ### """^ """ | | ????????# """^^^ #""!"!""#?##?# """ """ | | ????????# """ # "!"!" #???## | | ????????# """ ! # % %##### | | ????????# %% """ | | ????????# ""T"" %%< %% """ | | ????????# """""% "T" """ | | ????????# ########+## %% ##### | | ????????# #????? #########???# | | ######### #??? """ #???????????# ##### | | #??# """ #???????????# #???? | | ########## #??# """ #???????????# ###???? | | ! # #??# #???????????# #?????? | | = # #??# #???????????# #?????? | | [ # #??########???????????# #?????? | | ! + #?????????????????????# #?????? | | ! # ########??????????????# #?????? | | = # # #??????????????# #?????? | | # # T #??????????????# #?????? | | # # #???? ??????? #?????? | | #+##+##+## + #??? ??????? +?????? | | # #??? ??????? #?????? | +----------------------------------------------------+ Best States ------------- Heat Dissipation 28 Energy Generation 10 Energy Capacity 250 Matter Stores 300 Matter Capacity 300 Sight Range 16 Terrain Scan Density 10 ECM Strength 1 Armor Coverage 150 Core Shielding 20 Evasion (%) 55 Targeting Accuracy 5 Recoil Reduction 2 Item Schematics ----------------- None Robot Schematics ------------------ None Fabricated ------------ Nothing Alien Tech Used ----------------- None Achievements -------------- None Challenges ------------ None Game ------ Seed GravmagBladeCalibrator Manual? 0 Play Time 00:16:24 Cumulative 45.0 hours Start 2025.04.28 @ 20:41:23 End 2025.05.02 @ 22:20:29 Sessions 3 Manual Loads 0 Difficulty Rogue Special Mode None Game No. 79 Rogue 79 Adventurer 0 Explorer 0 Win Type - Total 0 Types 0/0/0/0/0/0/0/0/0 Lore% 20 Gallery% 44 Achievement% 35 Wizard Run 0 Options --------- Layout 1 ASCII 0 Keyboard 0 Movement Mouse Keybinds 0 Fullscreen 2 Font 32/Smallcaps Map View 50x35 Zoom Use 0% Tactical HUD 1 Map Filters NONE Filters NONE Steam 1 RUN: 8d1856d5-c531-463d-b1e6-3b4ecf5f227b